Cogmind - Beta 13 @@@ ROGUE MODE // 2024.04.01 @ 19:40:13 Player: BionicSandwich Result: Destroyed by 0L-I4L(R) with Subdweller Beam Cannon Performance ------------- Evolutions (0) 0 Regions Visited (2) 400 Robots Destroyed (24) 120 Value Destroyed (532) 532 Prototype IDs (2) 40 Alien Tech Used (0) 0 Bonus (-20) -20 TOTAL SCORE: 1072 Bonus ------- Friendly Fire -20 Cogmind --------- Core Integrity 0/250 Matter 263/300 Energy 100/100 System Corruption 0% Temperature Cool (9) Movement Core (1450) Ox28 Location -10/Subcaves Parts ------- > --- POWER (1) -------- (None) > --- PROPULSION (2) --- (None) > --- UTILITY (2) ------ Huge Storage Unit Signal Interpreter > --- WEAPON (2) ------- Small Laser Subdweller Machine Gun > --- INVENTORY (25) --- Ion Engine Aluminum Leg Aluminum Leg Aluminum Leg Aluminum Leg Aluminum Leg Aluminum Leg Heat Sink Improved Heat Sink Medium Storage Unit ECM Suite Scrap Shield Scrap Shield Makeshift System Restoration Module Peak State ------------ > --- POWER ------------ Subdweller Power Source > --- PROPULSION ------- Light Treads Light Treads > --- UTILITY ---------- Huge Storage Unit Signal Interpreter > --- WEAPON ----------- Small Laser Subdweller Machine Gun > --- INVENTORY -------- Ion Engine Ion Engine Light Ion Engine Light Treads Light Treads Aluminum Leg Aluminum Leg Aluminum Leg Aluminum Leg Aluminum Leg Aluminum Leg Heat Sink Improved Heat Sink Medium Storage Unit ECM Suite Scrap Shield [Rating: 11] Favorites ----------- Power Light Ion Engine Engine Light Ion Engine Propulsion Light Treads Treads Light Treads Leg Aluminum Leg Utility Huge Storage Unit Device ECM Suite Storage Huge Storage Unit Processor Signal Interpreter Weapon Medium Laser Energy Gun Medium Laser Ballistic Gun Subdweller Machine Gun Ballistic Cannon Light Cannon Build | -11 -10 -10 ------- Run | Yrd Mat Sub Slots Evolved . | . . . Power . | . . . Propulsion . | . . . Utility . | . . . Weapon . | . . . Parts Attached 24 | 8 11 5 Power 5 | 1 2 2 Engine 5 | 1 2 2 Core . | . . . Reactor . | . . . Propulsion 6 | 4 . 2 Treads 4 | 2 . 2 Leg 2 | 2 . . Wheel . | . . . Hover . | . . . Flight . | . . . Utility 6 | 1 5 . Device 1 | . 1 . Storage 4 | 1 3 . Processor 1 | . 1 . Hackware . | . . . Protection . | . . . Artifact . | . . . Weapon 7 | 2 4 1 Energy Gun 4 | 2 2 . Energy Cannon . | . . . Ballistic Gun 2 | . 1 1 Ballistic Cannon 1 | . 1 . Launcher . | . . . Special Weapon . | . . . Impact Weapon . | . . . Slashing Weapon . | . . . Piercing Weapon . | . . . Special Melee Weapon . | . . . Unidentified Prototypes . | . . . Parts Lost 8 | . 5 3 Power 3 | . 2 1 Propulsion 2 | . . 2 Utility . | . . . Weapon 3 | . 3 . Highest Loss Streak 3 | . 2 3 To Critical Strikes . | . . . Average Slot Usage (%) 93 | . 92 95 Engine 13 | . 13 14 Treads 27 | . 28 27 Device 2 | . 3 . Storage 14 | . 14 14 Processor 9 | . 7 14 Energy Gun 18 | . 20 14 Ballistic Gun 2 | . . 10 Ballistic Cannon 3 | . 4 . Naked Turns . | . . . Heaviest Build 90 | 12 90 90 Greatest Support 40 | 40 40 40 Greatest Overweight (x) 2 | . 2 2 Average Overweight (x) 1 | . 1 2 Largest Inventory Capacity 25 | 8 25 25 Average Capacity 21 | 7 21 25 Most Carried 17 | 5 15 17 Average Carried 11 | 3 11 15 Final Capacity 25 | 8 25 25 Final Carried 16 | 4 14 16 Class Distribution -------------------- 84% | Mutant 15% | Scavenger-Mutant Dominant Class ---------------- Mutant | -10/Materials Scavenger-Mutant | -10/Subcaves Resources | -11 -10 -10 ----------- Run | Yrd Mat Sub Matter Collected 496 | 280 198 18 Remotely . | . . . Salvage Created 751 | 131 570 50 Parts 39 | 3 32 4 Haulers Intercepted 1 | . 1 . Recyclers Shooed 1 | . 1 . Parts Field Recycled . | . . . Retrieved Matter . | . . . Parts Self-Destructed 3 | . . 3 Prevented . | . . . Kills | -11 -10 -10 ------- Run | Yrd Mat Sub Combat Hostiles Destroyed 19 | . 18 1 Guns 11 | . 10 1 Cannons 8 | . 8 . Classes Destroyed 6 | 2 3 1 Worker 3 | 2 1 . Hauler 1 | . 1 . Recycler 1 | 1 . . Swarmer 6 | . 6 . Grunt 12 | . 12 . Subdweller 1 | . . 1 Best Kill Streak 3 | 2 3 1 Combat Bots Only 3 | . 3 1 Max Kills in Single Turn 1 | 1 1 1 Gunslinging . | . . . Exploded . | . . . Melee . | . . . Uniques/NPCs Destroyed . | . . . Combat | -11 -10 -10 -------- Run | Yrd Mat Sub Hostile Shots Fired 136 | . 101 35 Missed 35 | . 22 13 Damage Taken 1336 | . 831 505 Core 255 | . 129 126 Absorbed by Shields . | . . . Core Remaining (%) 100 | 100 . . Volleys Fired 79 | 8 61 10 Largest 2 | 2 2 2 Hottest 100 | 100 100 70 Shots Fired 139 | 16 103 20 Gun 113 | 16 77 20 Cannon 26 | . 26 . Launcher . | . . . Special . | . . . Kinetic 41 | . 31 10 Thermal 98 | 16 72 10 Explosive . | . . . Electromagnetic . | . . . Robot Hit Streak 10 | 4 10 7 Robot Miss Streak 4 | 1 4 2 Penetration Max . | . . . Secondary Targets 1 | . 1 . Max Gunslinging Chain 1 | . 1 . Shots Hit Robots 92 | 11 66 15 Core Hits 36 | 4 29 3 Critical Kills . | . . . Critical Parts Destroyed 1 | . . 1 Critical Strikes 6 | 1 4 1 Burn 4 | 1 3 . Destroy 1 | . . 1 Blast 1 | . 1 . Melee Attacks . | . . . Impact . | . . . Slashing . | . . . Piercing . | . . . Sneak Attacks . | . . . Combat Hostiles . | . . . Follow-up Attacks . | . . . Damage Inflicted 1386 | 140 969 277 Guns 997 | 140 580 277 Cannons 368 | . 368 . Explosions . | . . . Melee . | . . . Ramming 21 | . 21 . Kinetic 563 | . 385 178 Thermal 802 | 140 563 99 Explosive . | . . . Electromagnetic . | . . . Impact . | . . . Slashing . | . . . Piercing . | . . . Highest Corruption . | . . . Average Corruption . | . . . Corruption Purged . | . . . Corruption Blocked . | . . . Overload Shots . | . . . Overflow Damage . | . . . Projectiles . | . . . Explosions . | . . . Melee . | . . . Knockbacks 5 | . 5 . Impact . | . . . Kinetic 3 | . 3 . Secondary 2 | . 2 . Self-Inflicted Damage . | . . . Shots . | . . . Rammed 3 | . 3 . Targets Rammed 3 | . 3 . Kicked . | . . . Crushed . | . . . Highest Temperature 234 | 234 176 . Average Temperature 66 | 94 62 . Received Heat Transfer 468 | . 378 90 Effects 1 | 1 . . Energy Bleed 1 | 1 . . Siege Activations . | . . . Robots Corrupted . | . . . Combat Hostiles . | . . . Parts Fried . | . . . Impact Corruptions . | . . . Robots Melted . | . . . Combat Hostiles . | . . . Parts Melted 6 | 2 4 . Heat Transferred 2558 | 481 1852 225 Parts Sabotaged . | . . . Parts Stolen . | . . . Parts Stripped . | . . . Power Chain Reactions . | . . . Alert | -11 -10 -10 ------- Run | Yrd Mat Sub Peak Influence 283 | 15 283 . Initial 9 | . 9 . Average 125 | 2 137 . Maximum Alert Level 1 | . 1 . Low Security (%) 75 | 100 72 . Level 1 24 | . 27 . Level 2 . | . . . Level 3 . | . . . Level 4 . | . . . Level 5 . | . . . High Security . | . . . Max Security . | . . . Squads Dispatched 4 | . 4 . Investigation 2 | . 2 . Extermination . | . . . Reinforcement 2 | . 2 . Assault . | . . . Garrison . | . . . Intercept . | . . . Searches Triggered . | . . . Construction Impeded . | . . . Haulers Reinforced . | . . . Active Scanning Responses . | . . . Cargo Convoy Interrupts . | . . . Stealth | -11 -10 -10 --------- Run | Yrd Mat Sub Distress Signals 5 | . 5 . Communications Jammed . | . . . Distress Signals . | . . . Times Spotted 45 | . 33 12 Peak Tracking Total 10 | . 5 10 Tactical Retreats 5 | . 5 . Traps | -11 -10 -10 ------- Run | Yrd Mat Sub Traps Triggered 1 | . 1 . Indirectly . | . . . Trap Hack Attempts . | . . . Triggered . | . . . Disarmed . | . . . Reprogrammed . | . . . Reused . | . . . Traps Extracted . | . . . Installed . | . . . Triggered . | . . . Machines | -11 -10 -10 ---------- Run | Yrd Mat Sub Machines Disabled . | . . . Max in Single Turn . | . . . Machines Repaired . | . . . Machines Dismantled . | . . . Machines Sabotaged . | . . . Overloaded Fab Kills . | . . . Hacking | -11 -10 -10 --------- Run | Yrd Mat Sub Machines Accessed 4 | . 4 . Terminals 4 | . 4 . Fabricators . | . . . Repair Stations . | . . . Recycling Units . | . . . Scanalyzers . | . . . Garrison Access . | . . . Total Hacks 8 | . 8 . Successful 3 | . 3 . Failed 5 | . 5 . Catastrophic . | . . . Database Lockouts . | . . . Manual . | . . . Terminals 8 | . 8 . Fabricators . | . . . Repair Stations . | . . . Recycling Units . | . . . Scanalyzers . | . . . Garrison Access . | . . . Terminal Hacks 3 | . 3 . Prototype ID Bank 1 | . 1 . Recall Investigation 1 | . 1 . Hauler Manifests 1 | . 1 . Fabricator Hacks . | . . . Repair Station Hacks . | . . . Recycling Unit Hacks . | . . . Scanalyzer . | . . . Garrison Access Hacks . | . . . Unauthorized Hacks . | . . . Terminals . | . . . Fabricators . | . . . Repair Stations . | . . . Recycling Units . | . . . Scanalyzers . | . . . Garrison Access . | . . . Data Cores Recovered . | . . . Used . | . . . Hacking Detections 3 | . 3 . Full Trace Events 1 | . 1 . Feedback Events . | . . . Feedback Blocked . | . . . Robot Schematics Acquired . | . . . Robots Built . | . . . Authchips . | . . . Time . | . . . Total Robot Build Rating . | . . . Part Schematics Acquired . | . . . Parts Built . | . . . Authchips . | . . . Time . | . . . Total Part Build Rating . | . . . Parts Repaired . | . . . Time . | . . . Parts Recycled . | . . . Recycled Matter . | . . . Retrieved Matter . | . . . Retrieved Components . | . . . Parts Scanalyzed . | . . . Part Schematics Acquired . | . . . Parts Damaged . | . . . Bothacking | -11 -10 -10 ------------ Run | Yrd Mat Sub Used RIF Installer . | . . . Robots Hacked . | . . . Non-combat . | . . . Combat . | . . . Robot Hacks Applied . | . . . Relay Couplers Released . | . . . Fabnet Peak Effective % . | . . . Robots Rewired . | . . . Allies Hacked . | . . . Hacks Repelled . | . . . Allies | -11 -10 -10 -------- Run | Yrd Mat Sub Total Allies . | . . . Largest Group . | . . . Highest-Rated Group . | . . . Highest-Rated Ally . | . . . Total Orders . | . . . Ally Attacks . | . . . Total Damage . | . . . Kills . | . . . Allies Corrupted . | . . . Allies Melted . | . . . Intel | -11 -10 -10 ------- Run | Yrd Mat Sub Robot Analysis Total . | . . . Derelict Logs Recovered . | . . . Drone Launches . | . . . Drone Recoveries . | . . . Exploration | -11 -10 -10 ------------- Run | Yrd Mat Sub Turns Passed 1768 | 125 1232 411 Spaces Moved 572 | 58 400 114 Core 4 | 4 . . Treads 556 | 42 400 114 Legs 12 | 12 . . Wheels . | . . . Hover . | . . . Flight . | . . . Fastest Speed 50 | 50 160 320 Average Speed 257 | 144 255 320 Slowest Speed 320 | 160 320 320 Overloaded Moves . | . . . Propulsion Burnouts . | . . . Robots Hopped . | . . . Cave-ins Triggered . | . . . Exploration Rate (%) 22 | 4 57 7 Regions Visited 2 Branch Regions 1 Pre-discovered Areas . | . . . Known Exits Taken 1 | . 1 . Unknown Exits Taken 1 | 1 . . Scrap Searched . | . . . Spaces Dug . | . . . Terrain Destroyed . | . . . Melee . | . . . Projectile . | . . . AOE . | . . . Terrain Rammed . | . . . Walls Destroyed . | . . . Machines Disabled . | . . . Actions | -11 -10 -10 --------- Run | Yrd Mat Sub Total 728 | 83 503 142 Wait 8 | . 8 . Move 570 | 57 399 114 Hop . | . . . Pick Up 35 | 10 18 7 Fast Attach . | . . . Attach 15 | 6 7 2 Detach . | . . . Swap 9 | 2 4 3 Drop 9 | . 3 6 Fire 79 | 8 61 10 Melee . | . . . Ram . | . . . Kick . | . . . Crush 3 | . 3 . Escape Stasis . | . . . Rewire . | . . . Trap . | . . . Miscellaneous . | . . . Route ------- -11/Scrapyard -10/Materials (discovered 3 exits: *Mat x2 / *Sub) -10/Subcaves History --------- Turn | Location | Event 25 | -11/Scrapyard | Discovered new exit (range 16) 126 | -11/Scrapyard | Entered Materials 313 | -10/Materials | Build established: Mutant 774 | -10/Materials | Discovered new exit (range 16) 1000 | -10/Materials | Discovered new exit (range 4) 1006 | -10/Materials | Identified exit to Materials 1241 | -10/Materials | Core integrity fell below 50% 1335 | -10/Materials | Discovered new exit (range 8) 1355 | -10/Materials | Identified exit to Subcaves 1358 | -10/Materials | Entered Subcaves 1725 | -10/Subcaves | Ambushed by swarm of Subdwellers 1727 | -10/Subcaves | Ambushed by Subdwellers from Twisted Machinery 1727 | -10/Subcaves | Ambushed by Subdwellers from Twisted Machinery 1727 | -10/Subcaves | Ambushed by Subdwellers from Twisted Machinery 1768 | -10/Subcaves | Core integrity fell below 20% 1769 | -10/Subcaves | Destroyed by 0L-I4L(R) with Subdweller Beam Cannon Last Messages --------------- NB-PNH(R) suffers critical hit (Destroy). Destroyed Sub. Machine Gun. ON-J9I(O) collects matter. NB-PNH(R) affixes Scrap Shield Fragment to Scrap Shield. WD-HAV(R) affixes Scrap Shield Fragment to Scrap Shield. ON-J9I(O) collects matter. AN-Y7I(g) destroyed. C8-23F(g) destroyed. ON-J9I(O) collects matter. NB-PNH(R) affixes Scrap Shield Fragment to Scrap Shield. WP-WVO(R) affixes Scrap Shield Fragment to Scrap Shield. WD-HAV(R) destroyed. ON-J9I(O) collects matter. Lgt. Ion Engine destroyed. Lgt. Treads destroyed. ON-J9I(O) collects matter. Map ----- +----------------------------------------------------+ | ?????????????????????????????????????????????????? | | ?????????????????????????????????????????????????? | | ?????????????????????????????????????????????????? | | ?????????????????????????????????????????????????? | | ?????????????????????????????????????????????????? | | ?????????????????????????????????????????????????? | | ?????????????????????????????????????????????????? | | ?????????????????????????????????????????????????? | | ?????????????????????????????????????????????????? | | ?????????????????????????????????????????????????? | | ?????????????????????????????????????????????????? | | ?????????????????????????????????????????????????? | | ?????????????????????????????????????????????????? | | ?????????????????????????????????????????????????? | | ????????????????????????????##???????????????????? | | ?????????????????????????##? ???????????????????? | | ????????????????????????? ????????????????????? | | ????????????????###?????? ????????????????????? | | ????????????????? ###??? ?????????????????????? | | ????????????????? #### ??????????????????????? | | ?????????????????? ## ??????????????????????? | | ????####?????????## ## ???????????????????????? | | ???## #?????????# ## ##??????????????????????? | | ???# #?????????## # #?????????%#???????????? | | ???? #???????### #; ##??????? $ ????????????? | | ????# #???????# # @#?????? ??????????????? | | ????# #####???# """ RRR####? #???????????????? | | ?#### ##""##### " ## R!= # #???????????????? | | ## " """"##" #####!R!! $ #???????????????? | | """"" "###" #???##=%[& #???????????????? | | """" "### #????# O[ # # #??????????????? | | " ## " ##????#[ ! #? #???????????????? | | """ #?????# [ = #???????????????? | | # " ### ##????# ! #???????????????? | | ######?## ##???# #???????????????? | | ####?#??### #???# % #???????????????? | | ## #### ## ##???# % #???????????????? | | " ## ## ##????# ##" ##???????????????? | | #""" ##?????# #?" #????????????????? | | ##" ##??????## ?###????????????????? | | ?## #????????### ????????????????????? | | ??###### * #???????????# ???????????????????? | | ???????# #???????????? ???????????????????? | | ???????# #???????????? ??????????????????? | | ???????# #???????????? ???????????????????? | | ?????### #?????????????????????????????????? | | ?????# ### #?????????????????????????????????? | | ?????# #?## #?????????????????????????????????? | | ?????# #??####?????????????????????????????????? | | ?????## ##???????????????????????????????????????? | +----------------------------------------------------+ Best States ------------- Heat Dissipation 25 Energy Generation 15 Energy Capacity 250 Matter Stores 300 Matter Capacity 300 Sight Range 16 Terrain Scan Density 10 ECM Strength 1 Evasion (%) 55 Recoil Reduction 2 Item Schematics ----------------- None Robot Schematics ------------------ None Fabricated ------------ Nothing Alien Tech Used ----------------- None Achievements -------------- None Challenges ------------ None Game ------ Seed TimingVisualAutogun Manual? 0 Play Time 00:15:19 Cumulative 1.9 hours Start 2024.04.01 @ 19:26:37 End 2024.04.01 @ 19:40:13 Sessions 1 Manual Loads 0 Difficulty Rogue Special Mode None Game No. 7 Rogue 7 Adventurer 0 Explorer 0 Win Type - Total 0 Types 0/0/0/0/0/0/0/0/0 Lore% 7 Gallery% 8 Achievement% 9 Wizard Run 0 Options --------- Layout 1 ASCII 0 Keyboard 0 Movement Mouse Keybinds 0 Fullscreen 1 Font 48/Smallcaps Map View 50x35 Zoom Use 0% Tactical HUD 0 Map Filters NONE Filters NONE Steam 1 RUN: ebde91e1-6990-4b17-9713-2611914e525d